Workbook

Sheet 表4-本會現有副首長、幕僚長、一級主管、二級主管性別比例
A1: 本會現有副首長、幕僚長、一級主管、二級主管性別比例
M2: 表4
A3: 年別 | B3: 副首長、幕僚長、一級主管 | H3: 二級主管
B4: 總計 | D4: 男 | F4: 女 | H4: 總計 | J4: 男 | L4: 女
B5: 人數 | C5: 比例 | D5: 人數 | E5: 比例 | F5: 人數 | G5: 比例 | H5: 人數 | I5: 比例 | J5: 人數 | K5: 比例 | L5: 人數 | M5: 比例
A6: 99年 | B6: =SUM(D6+F6) -> 9 | C6: =E6+G6 -> 100% | D6: 7 | E6: =SUM(D6/B6) -> 77.8% | F6: 2 | G6: =SUM(F6/B6) -> 22.2% | H6: =SUM(J6+L6) -> 21 | I6: =K6+M6 -> 100% | J6: 14 | K6: =SUM(J6/H6) -> 66.7% | L6: 7 | M6: =SUM(L6/H6) -> 33.3%
A7: 100年 | B7: =SUM(D7+F7) -> 7 | C7: =E7+G7 -> 100% | D7: 5 | E7: =SUM(D7/B7) -> 71.4% | F7: 2 | G7: =SUM(F7/B7) -> 28.6% | H7: =SUM(J7+L7) -> 20 | I7: =K7+M7 -> 100% | J7: 12 | K7: =SUM(J7/H7) -> 60.0% | L7: 8 | M7: =SUM(L7/H7) -> 40.0%
A8: 101年 | B8: 8 | C8: 100% | D8: 6 | E8: 75.0% | F8: 2 | G8: 25.0% | H8: 22 | I8: 100% | J8: 14 | K8: 63.6% | L8: 8 | M8: 36.4%
A9: 102年 | B9: 7 | C9: 100% | D9: 6 | E9: 85.7% | F9: 1 | G9: 14.3% | H9: 20 | I9: 100% | J9: 12 | K9: 60.0% | L9: 8 | M9: 40.0%
A10: 103年 | B10: 6 | C10: 100% | D10: 5 | E10: 83.3% | F10: 1 | G10: 16.7% | H10: 18 | I10: 100% | J10: 11 | K10: 61.1% | L10: 7 | M10: 38.9%
A11: 104年 | B11: 7 | C11: 100% | D11: 5 | E11: 71.4% | F11: 2 | G11: 28.6% | H11: 18 | I11: 100% | J11: 11 | K11: 61.1% | L11: 7 | M11: 38.9%
A12: 105年 | B12: 7 | C12: 100% | D12: 5 | E12: 71.4% | F12: 2 | G12: 28.6% | H12: 17 | I12: 100% | J12: 10 | K12: 58.8% | L12: 7 | M12: 41.2%
A13: 106年 | B13: 7 | C13: 100% | D13: 5 | E13: 71.4% | F13: 2 | G13: 28.6% | H13: 18 | I13: 100% | J13: 10 | K13: 55.6% | L13: 8 | M13: 44.4%
A14: 107年 | B14: =SUM(D14+F14) -> 7 | C14: =E14+G14 -> 100% | D14: 4 | E14: =SUM(D14/B14) -> 57.1% | F14: 3 | G14: =SUM(F14/B14) -> 42.9% | H14: =SUM(J14+L14) -> 16 | I14: =K14+M14 -> 100% | J14: 9 | K14: =SUM(J14/H14) -> 56.3% | L14: 7 | M14: =SUM(L14/H14) -> 43.8%
A15: 108年 | B15: =SUM(D15+F15) -> 7 | C15: 100% | D15: 4 | E15: 57.1% | F15: 3 | G15: 42.9% | H15: =SUM(J15+L15) -> 16 | I15: 100% | J15: 10 | K15: 62.5% | L15: 6 | M15: 37.5%
A16: 109年 | B16: =SUM(D16+F16) -> 8 | C16: 100% | D16: 5 | E16: 62.5% | F16: 3 | G16: 37.5% | H16: =SUM(J16+L16) -> 17 | I16: 100% | J16: 12 | K16: 70.6% | L16: 5 | M16: 29.4%
A17: 110年 | B17: =SUM(D17+F17) -> 8 | C17: 100% | D17: 4 | E17: 50.0% | F17: 4 | G17: 50.0% | H17: =SUM(J17+L17) -> 18 | I17: 100% | J17: 13 | K17: 72.2% | L17: 5 | M17: 27.8%
A18: 111年 | B18: 8 | C18: 100% | D18: 4 | E18: 50.0% | F18: 4 | G18: 50.0% | H18: 17 | I18: 100% | J18: 13 | K18: 76.5% | L18: 4 | M18: 23.5%
A19: 112年 | B19: 9 | C19: 100% | D19: 5 | E19: 55.6% | F19: 4 | G19: 44.4% | H19: 17 | I19: 100% | J19: 13 | K19: 76.5% | L19: 4 | M19: 23.5%
A20: 113年 | B20: 9 | C20: =E20+G20 -> 100% | D20: 5 | E20: =SUM(D20/B20) -> 55.6% | F20: 4 | G20: =SUM(F20/B20) -> 44.4% | H20: 18 | I20: =K20+M20 -> 100% | J20: 14 | K20: =SUM(J20/H20) -> 77.8% | L20: 4 | M20: =SUM(L20/H20) -> 22.2%
A21: 資料來源：人事室
A22: 備註： 1.性別資料使用：本會副首長、幕僚長及一級單位主管（含一條鞭單位）因人數較少，爰如人員異動則比例落差增大，如109年度一級主管調動後增加男性1人；110年度一級主管增加女性一人，減少男性一人；112年度一級主管增加男性一人，爰性別比例有所變動。另二級主管部分，因113年度二級主管增加男性一人，爰女性比例略減。 2.應用深化：受限於政府人事法制，在相關職缺公告、進用及陞遷時均不得限制性別，惟本會各類人員之男女比例及晉升情形，可做為本會規劃相關委員會委員組成（如人事甄審考績委員會）人數及比例之參據，並可提供首長勾選外補或陞遷人選之參考。 3.未進行國際性別統計比較原因說明：茲考量其他國家政府組織型態、功能任務迥異，爰未能就與本會業務性質與角色功能完全相同之國外政府機關進行國際比較。
